fUSD/lending_fUSD_20250211
["ID","MTS","AMOUNT","RATE_DAILY","PERIOD"]
[352756645,1739292684932,-1007.91,0.00017534,2]
[352756646,1739292684941,-1556.32,0.00017534,2]
[352756647,1739292684951,-743.69,0.00017534,2]
[352756648,1739292684962,-787.8,0.00017534,2]
[352756649,1739292684972,-500.0,0.00017534,2]
[352756650,1739292684982,-775.23,0.00017534,2]
[352756651,1739292684992,-1296.08,0.00017534,2]
[352756652,1739292685002,-3453.19,0.00017534,2]
[352756653,1739292685012,-1077.77,0.00017534,2]
[352756654,1739292685022,-903.8,0.00017534,2]
[352756655,1739292685031,-1620.87,0.00017534,2]
[352756656,1739292685042,-1360.37,0.00017534,2]
[352756657,1739292685052,-871.16,0.00017534,2]
[352756658,1739292685063,-1044.51,0.00017534,2]
[352756659,1739292685073,-1892.93,0.00017534,2]
[352756660,1739292685083,-1187.32,0.00017534,2]
[352756661,1739292685093,-1128.96,0.00017534,2]
[352756662,1739292685103,-500.0,0.00017534,2]
[352756663,1739292685113,-664.21,0.00017534,2]
[352756664,1739292685123,-1085.95,0.00017534,2]
[352756665,1739292685133,-831.29,0.00017534,2]
[352756666,1739292685143,-1315.41,0.00017534,2]
[352756667,1739292685152,-500.0,0.00017534,2]
[352756668,1739292685163,-1736.09,0.00017534,2]
[352756669,1739292685173,-1449.55,0.00017534,2]
[352756670,1739292685182,-792.28,0.00017534,2]
[352756671,1739292685191,-1153.98,0.00017534,2]
[352756672,1739292685202,-500.0,0.00017534,2]
[352756673,1739292685211,-500.0,0.00017534,2]
[352756674,1739292685222,-1628.97,0.00017534,2]
[352756675,1739292685232,-1363.01,0.00017534,2]
[352756676,1739292685242,-2696.96,0.00017534,2]
[352756677,1739292685251,-500.0,0.00017534,2]
[352756678,1739292685261,-1143.92,0.00017534,2]
[352756679,1739292685273,-628.01,0.00017534,2]
[352756680,1739292685282,-1164.3,0.00017534,2]
[352756681,1739292685292,-500.0,0.00017534,2]
[352756682,1739292685302,-1186.05,0.00017534,2]
[352756683,1739292685312,-1316.05,0.00017534,2]
[352756684,1739292685322,-507.5,0.00017534,2]
[352756685,1739292685394,-1204.14,0.00017534,2]
[352756686,1739292685404,-2709.34,0.00017534,2]
[352756687,1739292685413,-2432.62,0.00017534,2]
[352756688,1739292685423,-1383.14,0.00017534,2]
[352756689,1739292685432,-1113.99,0.00017534,2]
[352756690,1739292685441,-516.51,0.00017534,2]
[352756691,1739292685450,-770.35,0.00017534,2]
[352756692,1739292685459,-3406.84,0.00017534,2]
[352756693,1739292685469,-1152.94,0.00017534,2]
[352756694,1739292685479,-1081.2,0.00017534,2]
[352756695,1739292685488,-173.12754472,0.00017534,2]
[352756696,1739292685497,-2107.97,0.00017534,2]
[352756697,1739292685507,-500.0,0.00017534,2]
[352756698,1739292685517,-1266.65,0.00017534,2]
[352756699,1739292685529,-694.27,0.00017534,2]
[352756700,1739292685539,-500.0,0.00017534,2]
[352756701,1739292685548,-517.54,0.00017534,2]
[352756702,1739292685557,-1409.01,0.00017534,2]
[352756703,1739292685567,-760.33,0.00017534,2]
[352756704,1739292685577,-1622.42,0.00017534,2]
[352756705,1739292685587,-908.49,0.00017534,2]
[352756706,1739292685598,-500.0,0.00017534,2]
[352756707,1739292685608,-269.05877708,0.00017534,2]
[352756708,1739292685617,-1394.87,0.00017534,2]
[352756709,1739292685628,-1146.54,0.00017534,2]
[352756710,1739292685638,-2904.03,0.00017534,2]
[352756711,1739292685647,-881.37,0.00017534,2]
[352756712,1739292685657,-500.0,0.00017534,2]
[352756713,1739292685667,-581.55,0.00017534,2]
[352756714,1739292685677,-1246.46,0.00017534,2]
[352756715,1739292685688,-963.63,0.00017534,2]
[352756716,1739292685697,-500.0,0.00017534,2]
[352756717,1739292685706,-500.0,0.00017534,2]
[352756718,1739292685716,-500.0,0.00017534,2]
[352756719,1739292685726,-500.0,0.00017534,2]
[352756720,1739292685736,-500.0,0.00017534,2]
[352756721,1739292685746,-1035.86,0.00017534,2]
[352756722,1739292685756,-1186.79,0.00017534,2]
[352756723,1739292685765,-1512.18,0.00017534,2]
[352756724,1739292685776,-718.14,0.00017534,2]
[352756725,1739292685785,-500.0,0.00017534,2]
[352756726,1739292685795,-1350.44,0.00017534,2]
[352756727,1739292685806,-500.0,0.00017534,2]
[352756728,1739292685815,-1320.12,0.00017534,2]
[352756729,1739292685824,-500.0,0.00017534,2]
[352756730,1739292685834,-668.38,0.00017534,2]
[352756731,1739292685843,-358.08423134,0.00017534,2]
[352756732,1739292685852,-500.0,0.00017534,2]
[352756733,1739292685861,-500.0,0.00017534,2]
[352756734,1739292685871,-862.44,0.00017534,2]
[352756735,1739292685880,-1589.93,0.00017534,2]
[352756736,1739292685893,-985.84,0.00017534,2]
[352756737,1739292685902,-1153.41,0.00017534,2]
[352756738,1739292685912,-1534.98,0.00017534,2]
[352756739,1739292685922,-500.0,0.00017534,2]
[352756740,1739292685933,-500.0,0.00017534,2]
[352756741,1739292685942,-1581.96,0.00017534,2]
[352756742,1739292685952,-1598.66,0.00017534,2]
[352756743,1739292685962,-761.15,0.00017534,2]
[352756744,1739292685971,-500.0,0.00017534,2]
[352756745,1739292685981,-1270.11,0.00017534,2]
[352756746,1739292685991,-737.13,0.00017534,2]
[352756747,1739292686000,-992.82,0.00017534,2]
[352756748,1739292686010,-500.0,0.00017534,2]
[352756749,1739292686020,-1121.5,0.00017534,2]
[352756750,1739292686031,-824.99,0.00017534,2]
[352756751,1739292686041,-402.32864159,0.00017534,2]
[352756752,1739292686051,-1979.99,0.00017534,2]
[352756753,1739292686061,-500.0,0.00017534,2]
[352756754,1739292686070,-1201.69,0.00017534,2]
[352756755,1739292686080,-278.07066933,0.00017534,2]
[352756756,1739292686090,-500.0,0.00017534,2]
[352756757,1739292686100,-635.61,0.00017534,2]
[352756758,1739292686110,-812.69,0.00017534,2]
[352756759,1739292686120,-500.0,0.00017534,2]
[352756760,1739292686130,-500.0,0.00017534,2]
[352756761,1739292686140,-1000.0,0.00017534,2]
[352756762,1739292686149,-1168.66,0.00017534,2]
[352756763,1739292686159,-439.73,0.00017562,2]
[352756764,1739292686168,-666.6,0.00017576,2]
[352756765,1739292686178,-4000.0,0.0001758,2]
[352756766,1739292686188,-617.67,0.00017607,2]
[352756767,1739292686198,-671.45,0.00017607,2]
[352756768,1739292686208,-929.9,0.00017607,2]
[352756769,1739292686218,-320.50470785,0.00017619,2]
[352756770,1739292686227,-344.78422355,0.00017656,2]
[352756771,1739292686236,-178.013382,0.00017671,2]
[352756772,1739292686246,-1043.727911,0.00017671,2]
[352756773,1739292686255,-1232.861141,0.00017671,2]
[352756774,1739292686264,-500.0,0.00017671,2]
[352756775,1739292686274,-500.0,0.00017671,2]
[352756776,1739292686283,-500.0,0.00017671,2]
[352756777,1739292686292,-658.54,0.00017671,2]
[352756778,1739292686301,-500.0,0.00017671,2]
[352756779,1739292686311,-500.0,0.00017671,2]
[352756780,1739292686321,-500.0,0.00017671,2]
[352756781,1739292686330,-500.0,0.00017671,2]
[352756782,1739292686340,-708.99,0.00017671,2]
[352756783,1739292686350,-500.0,0.00017671,2]
[352756784,1739292686360,-620.8,0.00017671,2]
[352756785,1739292686370,-500.0,0.00017671,2]
[352756786,1739292686379,-500.0,0.00017671,2]
[352756787,1739292686389,-500.0,0.00017671,2]
[352756788,1739292686399,-616.82,0.00017671,2]
[352756789,1739292686408,-533.34,0.00017671,2]
[352756790,1739292686418,-500.0,0.00017671,2]
[352756791,1739292686427,-512.37,0.00017671,2]
[352756792,1739292686437,-500.0,0.00017671,2]
[352756793,1739292686446,-626.01,0.00017671,2]
[352756794,1739292686455,-593.14,0.00017671,2]
[352756795,1739292686465,-681.21,0.00017671,2]
[352756796,1739292686474,-500.0,0.00017671,2]
[352756797,1739292686484,-500.0,0.00017671,2]
[352756798,1739292686493,-565.98,0.00017671,2]
[352756799,1739292686502,-500.0,0.00017671,2]
[352756800,1739292686511,-610.07,0.00017671,2]
[352756801,1739292686520,-500.0,0.00017671,2]
[352756802,1739292686530,-500.0,0.00017671,2]
[352756803,1739292686541,-653.33,0.00017671,2]
[352756804,1739292686550,-500.0,0.00017671,2]
[352756805,1739292686560,-500.0,0.00017671,2]
[352756806,1739292686570,-575.35,0.00017671,2]
[352756807,1739292686579,-543.76,0.00017671,2]
[352756808,1739292686588,-560.98,0.00017671,2]
[352756809,1739292686598,-500.0,0.00017671,2]
[352756810,1739292686608,-504.72,0.00017671,2]
[352756811,1739292686619,-500.0,0.00017671,2]
[352756812,1739292686629,-500.0,0.00017671,2]
[352756813,1739292686638,-500.0,0.00017671,2]
[352756814,1739292686648,-721.21,0.00017671,2]
[352756815,1739292686657,-201.75682411,0.00017671,2]
[352756816,1739292686667,-500.0,0.00017671,2]
[352756817,1739292686677,-500.0,0.00017671,2]
[352756818,1739292686687,-500.0,0.00017671,2]
[352756819,1739292686697,-686.28,0.00017671,2]
[352756820,1739292686706,-500.0,0.00017671,2]
[352756821,1739292686716,-628.87,0.00017671,2]
[352756822,1739292686725,-500.0,0.00017671,2]
[352756823,1739292686735,-656.08,0.00017671,2]
[352756824,1739292686744,-500.0,0.00017671,2]
[352756825,1739292686754,-973.03,0.00017671,2]
[352756826,1739292686764,-769.16,0.00017671,2]
[352756827,1739292686773,-500.0,0.00017671,2]
[352756828,1739292686783,-500.0,0.00017671,2]
[352756829,1739292686793,-500.0,0.00017671,2]
[352756830,1739292686803,-2633.29,0.00017671,2]
[352756831,1739292686813,-608.46,0.00017671,2]
[352756832,1739292686822,-500.0,0.00017671,2]
[352756833,1739292686832,-562.42,0.00017671,2]
[352756834,1739292686841,-702.19,0.00017671,2]
[352756835,1739292686851,-500.0,0.00017671,2]
[352756836,1739292686861,-603.78,0.00017671,2]
[352756837,1739292686871,-500.0,0.00017671,2]
[352756838,1739292686884,-500.0,0.00017671,2]
[352756839,1739292686895,-500.0,0.00017671,2]
[352756840,1739292686904,-500.0,0.00017671,2]
[352756841,1739292686914,-521.19,0.00017671,2]
[352756842,1739292686925,-1362.81,0.00017671,2]
[352756843,1739292686935,-500.0,0.00017671,2]
[352756844,1739292686946,-590.53332258,0.00017671,2]
[352756845,1739292686956,-557.52,0.00017671,2]
[352756846,1739292686967,-1147.2,0.00017671,2]
[352756847,1739292686977,-500.0,0.00017671,2]
[352756848,1739292686986,-317.65128071,0.00017671,2]
[352756849,1739292686997,-500.0,0.00017671,2]
[352756850,1739292687007,-681.22,0.00017671,2]
[352756851,1739292687017,-765.29,0.00017671,2]
[352756852,1739292687029,-500.0,0.00017671,2]
[352756853,1739292687039,-500.0,0.00017671,2]
[352756854,1739292687049,-500.0,0.00017671,2]
[352756855,1739292687060,-500.0,0.00017671,2]
[352756856,1739292687070,-659.27,0.00017671,2]
[352756857,1739292687081,-500.0,0.00017671,2]
[352756858,1739292687091,-571.46,0.00017671,2]
[352756859,1739292687101,-500.0,0.00017671,2]
[352756860,1739292687111,-567.07,0.00017671,2]
[352756861,1739292687121,-500.0,0.00017671,2]
[352756862,1739292687131,-1328.94,0.00017671,2]
[352756863,1739292687140,-702.14,0.00017671,2]
[352756864,1739292687149,-653.21,0.00017671,2]
[352756865,1739292687160,-469.13,0.00017671,2]
[352756866,1739292687171,-500.0,0.00017671,2]
[352756867,1739292687181,-505.62,0.00017671,2]
[352756868,1739292687192,-781.92,0.00017671,2]
[352756869,1739292687202,-500.0,0.00017671,2]
[352756870,1739292687212,-768.57,0.00017671,2]
[352756871,1739292687222,-733.07,0.00017671,2]
[352756872,1739292687233,-607.06,0.00017671,2]
[352756873,1739292687243,-708.15,0.00017671,2]
[352756874,1739292687254,-500.0,0.00017671,2]
[352756875,1739292687266,-1118.08,0.00017671,2]
[352756876,1739292687276,-500.0,0.00017671,2]
[352756877,1739292687286,-500.0,0.00017671,2]
[352756878,1739292687297,-1638.68,0.00017671,2]
[352756879,1739292687308,-500.0,0.00017671,2]
[352756880,1739292687318,-972.23,0.00017671,2]
[352756881,1739292687327,-500.0,0.00017671,2]
[352756882,1739292687338,-1025.95,0.00017671,2]
[352756883,1739292687348,-849.42,0.00017671,2]
[352756884,1739292687358,-589.34,0.00017671,2]
[352756885,1739292687368,-949.12,0.00017671,2]
[352756886,1739292687378,-623.19,0.00017671,2]
[352756887,1739292687387,-774.19,0.00017671,2]
[352756888,1739292687398,-592.84,0.00017671,2]
[352756889,1739292687408,-897.44,0.00017671,2]
[352756890,1739292687418,-500.0,0.00017671,2]
[352756891,1739292687428,-1236.71,0.00017671,2]
[352756892,1739292687438,-1146.12,0.00017671,2]
[352756893,1739292687448,-877.02,0.00017671,2]
[352756894,1739292687459,-500.0,0.00017671,2]
[352756895,1739292687468,-636.96,0.00017671,2]
[352756896,1739292687478,-851.21,0.00017671,2]
[352756897,1739292687487,-1026.57,0.00017671,2]
[352756898,1739292687498,-1722.06,0.00017671,2]
[352756899,1739292687508,-755.82,0.00017671,2]
[352756900,1739292687518,-500.0,0.00017671,2]
[352756901,1739292687528,-500.0,0.00017671,2]
[352756902,1739292687538,-1007.91,0.00017671,2]
[352756903,1739292687549,-1556.32,0.00017671,2]
[352756904,1739292687558,-743.69,0.00017671,2]
[352756905,1739292687569,-787.8,0.00017671,2]
[352756906,1739292687578,-500.0,0.00017671,2]
[352756907,1739292687588,-775.23,0.00017671,2]
[352756908,1739292687598,-1296.08,0.00017671,2]
[352756909,1739292687607,-3453.19,0.00017671,2]
[352756910,1739292687616,-1077.77,0.00017671,2]
[352756911,1739292687626,-903.8,0.00017671,2]
[352756912,1739292687636,-1620.87,0.00017671,2]
[352756913,1739292687646,-1360.37,0.00017671,2]
[352756914,1739292687656,-871.16,0.00017671,2]
[352756915,1739292687665,-1044.51,0.00017671,2]
[352756916,1739292687676,-1892.93,0.00017671,2]
[352756917,1739292687686,-1187.32,0.00017671,2]
[352756918,1739292687696,-1128.96,0.00017671,2]
[352756919,1739292687706,-500.0,0.00017671,2]
[352756920,1739292687715,-664.21,0.00017671,2]
[352756921,1739292687725,-1085.95,0.00017671,2]
[352756922,1739292687735,-831.29,0.00017671,2]
[352756923,1739292687745,-500.0,0.00017671,2]
[352756924,1739292687754,-1315.41,0.00017671,2]
[352756925,1739292687764,-1736.09,0.00017671,2]
[352756926,1739292687774,-1449.55,0.00017671,2]
[352756927,1739292687784,-792.28,0.00017671,2]
[352756928,1739292687796,-1153.98,0.00017671,2]
[352756929,1739292687806,-500.0,0.00017671,2]
[352756930,1739292687817,-500.0,0.00017671,2]
[352756931,1739292687828,-1628.97,0.00017671,2]
[352756932,1739292687837,-1363.01,0.00017671,2]
[352756933,1739292687847,-2696.96,0.00017671,2]
[352756934,1739292687857,-500.0,0.00017671,2]
[352756935,1739292687867,-1143.92,0.00017671,2]
[352756936,1739292687878,-628.01,0.00017671,2]
[352756937,1739292687890,-1164.3,0.00017671,2]
[352756938,1739292687900,-500.0,0.00017671,2]
[352756939,1739292687910,-1186.05,0.00017671,2]
[352756940,1739292687921,-1316.05,0.00017671,2]
[352756941,1739292687932,-507.5,0.00017671,2]
[352756942,1739292687942,-1204.14,0.00017671,2]
[352756943,1739292687952,-2709.34,0.00017671,2]
[352756944,1739292687963,-2432.62,0.00017671,2]
[352756945,1739292687973,-1383.14,0.00017671,2]
[352756946,1739292687983,-1113.99,0.00017671,2]
[352756947,1739292687993,-516.51,0.00017671,2]
[352756948,1739292688003,-770.35,0.00017671,2]
[352756949,1739292688014,-3406.84,0.00017671,2]
[352756950,1739292688024,-1152.94,0.00017671,2]
[352756951,1739292688035,-1081.2,0.00017671,2]
[352756952,1739292688045,-2107.97,0.00017671,2]
[352756953,1739292688054,-500.0,0.00017671,2]
[352756954,1739292688065,-1266.65,0.00017671,2]
[352756955,1739292688074,-694.27,0.00017671,2]
[352756956,1739292688085,-268.33873903,0.00017671,2]
[352756957,1739292688095,-517.54,0.00017671,2]
[352756958,1739292688106,-760.33,0.00017671,2]
[352756959,1739292688118,-1409.01,0.00017671,2]
[352756960,1739292688128,-1622.42,0.00017671,2]
[352756961,1739292688138,-908.49,0.00017671,2]
[352756962,1739292688148,-500.0,0.00017671,2]
[352756963,1739292688158,-1394.87,0.00017671,2]
[352756964,1739292688169,-1146.54,0.00017671,2]
[352756965,1739292688179,-2904.03,0.00017671,2]
[352756966,1739292688189,-881.37,0.00017671,2]
[352756967,1739292688200,-500.0,0.00017671,2]
[352756968,1739292688210,-581.55,0.00017671,2]
[352756969,1739292688220,-1246.46,0.00017671,2]
[352756970,1739292688231,-963.63,0.00017671,2]
[352756971,1739292688242,-500.0,0.00017671,2]
[352756972,1739292688252,-500.0,0.00017671,2]
[352756973,1739292688263,-500.0,0.00017671,2]
[352756974,1739292688275,-500.0,0.00017671,2]
[352756975,1739292688285,-500.0,0.00017671,2]
[352756976,1739292688296,-1035.86,0.00017671,2]
[352756977,1739292688306,-1186.79,0.00017671,2]
[352756978,1739292688316,-1512.18,0.00017671,2]
[352756979,1739292688326,-718.14,0.00017671,2]
[352756980,1739292688336,-500.0,0.00017671,2]
[352756981,1739292688345,-1350.44,0.00017671,2]
[352756982,1739292688355,-500.0,0.00017671,2]
[352756983,1739292688365,-1320.12,0.00017671,2]
[352756984,1739292688376,-500.0,0.00017671,2]
[352756985,1739292688386,-668.38,0.00017671,2]
[352756986,1739292688397,-500.0,0.00017671,2]
[352756987,1739292688407,-500.0,0.00017671,2]
[352756988,1739292688418,-862.44,0.00017671,2]
[352756989,1739292688430,-1589.93,0.00017671,2]
[352756990,1739292688440,-985.84,0.00017671,2]
[352756991,1739292688451,-1153.41,0.00017671,2]
[352756992,1739292688461,-1534.98,0.00017671,2]
[352756993,1739292688472,-500.0,0.00017671,2]
[352756994,1739292688483,-500.0,0.00017671,2]
[352756995,1739292688493,-1581.96,0.00017671,2]
[352756996,1739292688504,-1598.66,0.00017671,2]
[352756997,1739292688515,-761.15,0.00017671,2]
[352756998,1739292688525,-500.0,0.00017671,2]
[352756999,1739292688537,-1270.11,0.00017671,2]
[352757000,1739292688548,-737.13,0.00017671,2]
[352757001,1739292688558,-992.82,0.00017671,2]
[352757002,1739292688569,-500.0,0.00017671,2]
[352757003,1739292688579,-1121.5,0.00017671,2]
[352757004,1739292688589,-824.99,0.00017671,2]
[352757005,1739292688600,-1979.99,0.00017671,2]
[352757006,1739292688610,-500.0,0.00017671,2]
[352757007,1739292688620,-1201.69,0.00017671,2]
[352757008,1739292688631,-500.0,0.00017671,2]
[352757009,1739292688641,-635.61,0.00017671,2]
[352757010,1739292688651,-812.69,0.00017671,2]
[352757011,1739292688662,-500.0,0.00017671,2]
[352757012,1739292688672,-500.0,0.00017671,2]
[352757013,1739292688682,-150.0,0.0001768,2]
[352757014,1739292688692,-877.32,0.00017699,2]
[352757015,1739292688702,-500.0,0.00017699,2]
[352757016,1739292688713,-10395.55057901,0.00017706,4]
[352757017,1739292688723,-666.6,0.00017713,2]
[352757018,1739292688733,-617.67,0.00017744,2]
[352757019,1739292688742,-671.45,0.00017744,2]
[352757020,1739292688751,-929.9,0.00017744,2]
[352757021,1739292688764,-8000.0,0.00017778,7]
[352757022,1739292688774,-500.0,0.00017799,2]
[352757023,1739292688783,-300.0,0.000178,2]
[352757024,1739292688793,-1043.727911,0.00017808,2]
[352757025,1739292688803,-1232.861141,0.00017808,2]
[352757026,1739292688812,-150.503094,0.00017808,2]
[352757027,1739292688822,-500.0,0.00017808,2]
[352757028,1739292688832,-500.0,0.00017808,2]
[352757029,1739292688842,-547.59374076,0.00017808,2]
[352757030,1739292688851,-658.54,0.00017808,2]
[352757031,1739292688861,-500.0,0.00017808,2]
[352757032,1739292688872,-500.0,0.00017808,2]
[352757033,1739292688882,-500.0,0.00017808,2]
[352757034,1739292688893,-500.0,0.00017808,2]
[352757035,1739292688903,-708.99,0.00017808,2]
[352757036,1739292688913,-289.79254699,0.00017808,2]
[352757037,1739292688924,-620.8,0.00017808,2]
[352757038,1739292688934,-500.0,0.00017808,2]
[352757039,1739292688944,-500.0,0.00017808,2]
[352757040,1739292688954,-336.2293483,0.00017808,2]
[352757041,1739292688968,-616.82,0.00017808,2]
[352757042,1739292688979,-533.34,0.00017808,2]
[352757043,1739292688989,-334.83,0.00017808,2]
[352757044,1739292688999,-512.37,0.00017808,2]
[352757045,1739292689010,-500.0,0.00017808,2]
[352757046,1739292689020,-626.01,0.00017808,2]
[352757047,1739292689031,-593.14,0.00017808,2]
[352757048,1739292689041,-681.21,0.00017808,2]
[352757049,1739292689051,-555.35130557,0.00017808,2]
[352757050,1739292689061,-500.0,0.00017808,2]
[352757051,1739292689071,-565.98,0.00017808,2]
[352757052,1739292689080,-500.0,0.00017808,2]
[352757053,1739292689090,-610.07,0.00017808,2]
[352757054,1739292689101,-500.0,0.00017808,2]
[352757055,1739292689112,-176.05497918,0.00017808,2]
[352757056,1739292689123,-653.33,0.00017808,2]
[352757057,1739292689133,-500.0,0.00017808,2]
[352757058,1739292689143,-332.35399829,0.00017808,2]
[352757059,1739292689153,-575.35,0.00017808,2]
[352757060,1739292689164,-543.76,0.00017808,2]
[352757061,1739292689174,-560.98,0.00017808,2]
[352757062,1739292689185,-500.0,0.00017808,2]
[352757063,1739292689195,-504.72,0.00017808,2]
[352757064,1739292689205,-500.0,0.00017808,2]
[352757065,1739292689215,-500.0,0.00017808,2]
[352757066,1739292689225,-500.0,0.00017808,2]
[352757067,1739292689234,-721.21,0.00017808,2]
[352757068,1739292689244,-500.0,0.00017808,2]
[352757069,1739292689255,-500.0,0.00017808,2]
[352757070,1739292689265,-500.0,0.00017808,2]
[352757071,1739292689278,-686.28,0.00017808,2]
[352757072,1739292689289,-500.0,0.00017808,2]
[352757073,1739292689299,-628.87,0.00017808,2]
[352757074,1739292689309,-500.0,0.00017808,2]
[352757075,1739292689320,-656.08,0.00017808,2]
[352757076,1739292689332,-500.0,0.00017808,2]
[352757077,1739292689341,-973.03,0.00017808,2]
[352757078,1739292689351,-769.16,0.00017808,2]
[352757079,1739292689362,-500.0,0.00017808,2]
[352757080,1739292689372,-345.81,0.00017808,2]
[352757081,1739292689383,-500.0,0.00017808,2]
[352757082,1739292689393,-2633.29,0.00017808,2]
[352757083,1739292689403,-608.46,0.00017808,2]
[352757084,1739292689413,-500.0,0.00017808,2]
[352757085,1739292689423,-562.42,0.00017808,2]
[352757086,1739292689433,-702.19,0.00017808,2]
[352757087,1739292689444,-500.0,0.00017808,2]
[352757088,1739292689654,-603.78,0.00017808,2]
[352757089,1739292689666,-500.0,0.00017808,2]
[352757090,1739292689678,-500.0,0.00017808,2]
[352757091,1739292689690,-500.0,0.00017808,2]
[352757092,1739292689700,-500.0,0.00017808,2]
[352757093,1739292689711,-521.19,0.00017808,2]
[352757094,1739292689721,-1362.81,0.00017808,2]
[352757095,1739292689731,-340.62381911,0.00017808,2]
[352757096,1739292689741,-557.52,0.00017808,2]
[352757097,1739292689752,-1147.2,0.00017808,2]
[352757098,1739292689761,-500.0,0.00017808,2]
[352757099,1739292689773,-500.0,0.00017808,2]
[352757100,1739292689788,-681.22,0.00017808,2]
[352757101,1739292689798,-765.29,0.00017808,2]
[352757102,1739292689808,-500.0,0.00017808,2]
[352757103,1739292689821,-500.0,0.00017808,2]
[352757104,1739292689832,-500.0,0.00017808,2]
[352757105,1739292689844,-500.0,0.00017808,2]
[352757106,1739292689855,-659.27,0.00017808,2]
[352757107,1739292689865,-500.0,0.00017808,2]
[352757108,1739292689876,-571.46,0.00017808,2]
[352757109,1739292689890,-500.0,0.00017808,2]
[352757110,1739292689901,-567.07,0.00017808,2]
[352757111,1739292689911,-500.0,0.00017808,2]
[352757112,1739292689921,-1328.94,0.00017808,2]
[352757113,1739292689932,-702.14,0.00017808,2]
[352757114,1739292689941,-653.21,0.00017808,2]
[352757115,1739292689952,-500.0,0.00017808,2]
[352757116,1739292689966,-505.62,0.00017808,2]
[352757117,1739292689978,-781.92,0.00017808,2]
[352757118,1739292689988,-500.0,0.00017808,2]
[352757119,1739292689998,-768.57,0.00017808,2]
[352757120,1739292690009,-733.07,0.00017808,2]
[352757121,1739292690020,-607.06,0.00017808,2]
[352757122,1739292690033,-708.15,0.00017808,2]
[352757123,1739292690044,-500.0,0.00017808,2]
[352757124,1739292690055,-1118.08,0.00017808,2]
[352757125,1739292690065,-500.0,0.00017808,2]
[352757126,1739292690076,-500.0,0.00017808,2]
[352757127,1739292690087,-1638.68,0.00017808,2]
[352757128,1739292690097,-500.0,0.00017808,2]
[352757129,1739292690107,-972.23,0.00017808,2]
[352757130,1739292690117,-500.0,0.00017808,2]
[352757131,1739292690127,-1025.95,0.00017808,2]
[352757132,1739292690137,-849.42,0.00017808,2]
[352757133,1739292690146,-589.34,0.00017808,2]
[352757134,1739292690157,-949.12,0.00017808,2]
[352757135,1739292690166,-623.19,0.00017808,2]
[352757136,1739292690177,-774.19,0.00017808,2]
[352757137,1739292690187,-592.84,0.00017808,2]
[352757138,1739292690197,-897.44,0.00017808,2]
[352757139,1739292690209,-500.0,0.00017808,2]
[352757140,1739292690219,-1236.71,0.00017808,2]
[352757141,1739292690230,-1146.12,0.00017808,2]
[352757142,1739292690240,-877.02,0.00017808,2]
[352757143,1739292690250,-500.0,0.00017808,2]
[352757144,1739292690260,-636.96,0.00017808,2]